fUSD/lending_fUSD_20260107
["ID","MTS","AMOUNT","RATE_DAILY","PERIOD"]
[400733365,1767803439975,-1500.0,0.00016168,2]
[400733367,1767803439984,-1500.0,0.00016168,2]
[400733369,1767803439993,-1500.0,0.00016168,2]
[400733371,1767803440003,-1500.0,0.00016168,2]
[400733373,1767803440012,-1500.0,0.00016168,2]
[400733375,1767803440021,-33359.96895162,0.000162,5]
[400733377,1767803440031,-231.23799714,0.00016217,2]
[400733379,1767803440040,-500.0,0.00016217,2]
[400733381,1767803440049,-543.0,0.00016217,2]
[400733383,1767803440059,-335.1109073,0.00016217,2]
[400733385,1767803440069,-500.0,0.00016217,2]
[400733387,1767803440078,-500.0,0.00016217,2]
[400733390,1767803440088,-500.0,0.00016272,2]
[400733391,1767803440097,-543.0,0.00016272,2]
[400733394,1767803440106,-500.0,0.00016272,2]
[400733396,1767803440116,-510.0,0.00016295,2]
[400733397,1767803440126,-128449.24557458,0.000163,2]
[400733400,1767803440143,-438.06330782,0.00016311,2]
[400733402,1767803440152,-491.58151617,0.00016327,2]
[400733404,1767803440161,-543.0,0.00016327,2]
[400733406,1767803440170,-500.0,0.00016327,2]
[400733408,1767803440180,-1016.77,0.00016328,2]
[400733410,1767803440189,-500.0,0.00016328,2]
[400733411,1767803440199,-500.0,0.00016328,2]
[400733412,1767803440209,-23136.75027823,0.00016336,2]
[400733414,1767803440218,-543.0,0.00016381,2]
[400733416,1767803440228,-500.0,0.00016381,2]
[400733417,1767803440237,-500.0,0.00016383,2]
[400733418,1767803440246,-500.0,0.00016383,2]
[400733419,1767803440255,-151.0,0.00016393,2]
[400733420,1767803440265,-151.0,0.00016393,2]
[400733421,1767803440274,-151.0,0.00016418,2]
[400733422,1767803440283,-151.0,0.00016418,2]
[400733423,1767803440294,-2758.10218633,0.00016427,2]
[400733424,1767803440303,-543.0,0.00016436,2]
[400733425,1767803440313,-500.0,0.00016436,2]
[400733426,1767803440322,-500.0,0.00016438,2]
[400733427,1767803440331,-500.0,0.00016438,2]
[400733428,1767803440340,-500.0,0.00016438,2]
[400733429,1767803440350,-682.85583008,0.00016438,2]
[400733430,1767803440359,-682.85583008,0.00016438,2]
[400733431,1767803440368,-682.85583008,0.00016438,2]
[400733432,1767803440376,-682.85583008,0.00016438,2]
[400733433,1767803440386,-682.85583008,0.00016438,2]
[400733434,1767803440395,-682.85583008,0.00016438,2]
[400733435,1767803440405,-682.85583008,0.00016438,2]
[400733436,1767803440414,-682.85583008,0.00016438,2]
[400733437,1767803440423,-682.85583008,0.00016438,2]
[400733438,1767803440433,-682.85583008,0.00016438,2]
[400733439,1767803440442,-682.85583008,0.00016438,2]
[400733440,1767803440452,-682.85583008,0.00016438,2]
[400733441,1767803440461,-682.85583008,0.00016438,2]
[400733442,1767803440471,-682.85583008,0.00016438,2]
[400733443,1767803440480,-682.85583008,0.00016438,2]
[400733444,1767803440490,-682.85583008,0.00016438,2]
[400733445,1767803440499,-682.85583008,0.00016438,2]
[400733446,1767803440508,-682.85583008,0.00016438,2]
[400733447,1767803440517,-682.85583008,0.00016438,2]
[400733448,1767803440527,-682.85583008,0.00016438,2]
[400733449,1767803440536,-682.85583008,0.00016438,2]
[400733450,1767803440545,-682.85583008,0.00016438,2]
[400733451,1767803440555,-682.85583008,0.00016438,2]
[400733452,1767803440564,-682.85583008,0.00016438,2]
[400733453,1767803440572,-682.85583008,0.00016438,2]
[400733454,1767803440582,-682.85583008,0.00016438,2]
[400733455,1767803440592,-682.85583008,0.00016438,2]
[400733456,1767803440601,-682.85583008,0.00016438,2]
[400733457,1767803440610,-682.85583008,0.00016438,2]
[400733458,1767803440620,-682.85583008,0.00016438,2]
[400733459,1767803440629,-682.85583008,0.00016438,2]
[400733460,1767803440641,-682.85583008,0.00016438,2]
[400733461,1767803440928,-682.85583008,0.00016438,2]
[400733462,1767803440939,-682.85583008,0.00016438,2]
[400733463,1767803440948,-682.85583008,0.00016438,2]
[400733464,1767803440958,-682.85583008,0.00016438,2]
[400733465,1767803440968,-682.85583008,0.00016438,2]
[400733466,1767803440978,-682.85583008,0.00016438,2]
[400733467,1767803440987,-682.85583008,0.00016438,2]
[400733468,1767803440996,-682.85583008,0.00016438,2]
[400733469,1767803441006,-3321.09657817,0.00016438,2]
[400733470,1767803441016,-3321.09657817,0.00016438,2]
[400733471,1767803441025,-3321.09657817,0.00016438,2]
[400733472,1767803441036,-3321.09657817,0.00016438,2]
[400733473,1767803441046,-3321.09657817,0.00016438,2]
[400733474,1767803441056,-3321.09657817,0.00016438,2]
[400733475,1767803441066,-3321.09657817,0.00016438,2]
[400733476,1767803441076,-3321.09657817,0.00016438,2]
[400733477,1767803441086,-3321.09657817,0.00016438,2]
[400733478,1767803441096,-3321.09657817,0.00016438,2]
[400733479,1767803441105,-3321.09657817,0.00016438,2]
[400733480,1767803441115,-3321.09657817,0.00016438,2]
[400733481,1767803441125,-3321.09657817,0.00016438,2]
[400733482,1767803441135,-3321.09657817,0.00016438,2]
[400733483,1767803441145,-3321.09657817,0.00016438,2]
[400733484,1767803441155,-3321.09657817,0.00016438,2]
[400733485,1767803441164,-3321.09657817,0.00016438,2]
[400733486,1767803441174,-3321.09657817,0.00016438,2]
[400733487,1767803441184,-3321.09657817,0.00016438,2]
[400733488,1767803441194,-3321.09657817,0.00016438,2]
[400733489,1767803441204,-3321.09657817,0.00016438,2]
[400733490,1767803441214,-3248.89882647,0.00016438,2]
[400733491,1767803441224,-3248.89882647,0.00016438,2]
[400733492,1767803441234,-3248.89882647,0.00016438,2]
[400733493,1767803441243,-3248.89882647,0.00016438,2]
[400733494,1767803441253,-3248.89882647,0.00016438,2]
[400733495,1767803441263,-3248.89882647,0.00016438,2]
[400733496,1767803441272,-3248.89882647,0.00016438,2]
[400733497,1767803441283,-3248.89882647,0.00016438,2]
[400733498,1767803441292,-3248.89882647,0.00016438,2]
[400733499,1767803441302,-3248.89882647,0.00016438,2]
[400733500,1767803441311,-3248.89882647,0.00016438,2]
[400733501,1767803441322,-3248.89882647,0.00016438,2]
[400733502,1767803441331,-3248.89882647,0.00016438,2]
[400733503,1767803441341,-3248.89882647,0.00016438,2]
[400733504,1767803441350,-3248.89882647,0.00016438,2]
[400733505,1767803441360,-3248.89882647,0.00016438,2]
[400733506,1767803441369,-3248.89882647,0.00016438,2]
[400733507,1767803441378,-3248.89882647,0.00016438,2]
[400733508,1767803441388,-3248.89882647,0.00016438,2]
[400733509,1767803441397,-3248.89882647,0.00016438,2]
[400733510,1767803441407,-3248.89882647,0.00016438,2]
[400733511,1767803441417,-3549.72279191,0.00016438,2]
[400733512,1767803441426,-3549.72279191,0.00016438,2]
[400733513,1767803441435,-3549.72279191,0.00016438,2]
[400733514,1767803441445,-800.0,0.00016438,2]
[400733515,1767803441454,-165.16,0.0001644,2]
[400733516,1767803441464,-1100.0,0.0001646,2]
[400733517,1767803441473,-600.0,0.00016487,2]
[400733518,1767803441483,-543.0,0.00016491,2]
[400733519,1767803441493,-500.0,0.00016491,2]
[400733520,1767803441502,-516.35240898,0.00016491,2]
[400733521,1767803441512,-500.0,0.00016492,2]
[400733522,1767803441522,-500.0,0.00016492,2]
[400733523,1767803441532,-500.0,0.00016493,2]
[400733524,1767803441542,-1163.40195296,0.00016512,2]
[400733525,1767803441551,-543.0,0.00016546,2]
[400733526,1767803441560,-500.0,0.00016546,2]
[400733527,1767803441570,-500.0,0.00016547,2]
[400733528,1767803441579,-500.0,0.00016547,2]
[400733529,1767803441589,-500.0,0.00016548,2]
[400733530,1767803441599,-951.44310393,0.00016557,2]
[400733531,1767803441608,-250.0,0.00016574,2]
[400733532,1767803441619,-600.0,0.00016574,2]
[400733533,1767803441628,-600.0,0.00016574,2]
[400733534,1767803441638,-600.0,0.00016574,2]
[400733535,1767803441648,-600.0,0.00016574,2]
[400733536,1767803441658,-543.0,0.00016601,2]
[400733537,1767803441668,-500.0,0.00016601,2]
[400733538,1767803441678,-595.37131296,0.00016602,2]
[400733539,1767803441688,-500.0,0.00016602,2]
[400733540,1767803441698,-500.0,0.00016602,2]
[400733541,1767803441708,-1016.77,0.00016602,2]
[400733542,1767803441718,-420.0,0.00016602,2]
[400733543,1767803441729,-420.0,0.00016602,2]
[400733544,1767803441739,-188.33554362,0.00016602,2]
[400733545,1767803441749,-500.0,0.00016603,2]
[400733546,1767803441759,-500.0,0.00016643,2]
[400733547,1767803441769,-260.71775079,0.00016643,2]
[400733548,1767803441780,-322.49416926,0.00016643,2]
[400733549,1767803441789,-507.8387061,0.00016643,2]
[400733550,1767803441801,-182.6941269,0.00016643,2]
[400733551,1767803441812,-500.0,0.00016643,2]
[400733552,1767803441822,-500.0,0.00016643,2]
[400733553,1767803441831,-500.0,0.00016643,2]
[400733554,1767803441841,-500.0,0.00016643,2]
[400733555,1767803441851,-500.0,0.00016643,2]
[400733556,1767803441861,-500.0,0.00016643,2]
[400733557,1767803441871,-500.0,0.00016643,2]
[400733558,1767803441882,-500.0,0.00016643,2]
[400733559,1767803441891,-628.50709886,0.00016643,2]
[400733560,1767803441902,-23136.75027823,0.00016649,2]
[400733561,1767803441912,-543.0,0.00016655,2]
[400733562,1767803441921,-500.0,0.00016657,2]
[400733563,1767803441931,-342.24922462,0.00016657,2]
[400733564,1767803441940,-1680.0,0.00016687,2]
[400733565,1767803441951,-250.0,0.00016689,2]
[400733566,1767803441960,-250.0,0.00016691,2]
[400733567,1767803441970,-195.0,0.00016691,2]
[400733568,1767803441979,-300.0,0.00016691,2]
[400733569,1767803441989,-300.0,0.00016691,2]
[400733570,1767803441999,-5000.0,0.00016691,2]
[400733571,1767803442008,-5000.0,0.00016691,2]
[400733572,1767803442017,-4685.70338709,0.00016691,2]
[400733573,1767803442027,-2500.0,0.00016691,2]
[400733574,1767803442036,-193.0,0.00016691,2]
[400733575,1767803442045,-195.0,0.00016691,2]
[400733576,1767803442055,-152.10889041,0.00016691,2]
[400733577,1767803442064,-639.05245982,0.00016691,2]
[400733578,1767803442075,-543.0,0.0001671,2]
[400733579,1767803442084,-500.0,0.00016712,2]
[400733580,1767803442093,-2000.0,0.00016716,2]
[400733581,1767803442103,-2000.0,0.00016716,2]
[400733582,1767803442114,-2000.0,0.00016716,2]
[400733583,1767803442124,-2000.0,0.00016716,2]
[400733584,1767803442133,-2000.0,0.00016716,2]
[400733585,1767803442143,-176.00349903,0.00016716,2]
[400733586,1767803442152,-2000.0,0.00016716,2]
[400733587,1767803442162,-2024.05521125,0.00016716,2]
[400733588,1767803442171,-378.07,0.00016741,2]
[400733589,1767803442180,-543.0,0.00016765,2]
[400733590,1767803442190,-500.0,0.00016766,2]
[400733591,1767803442200,-543.0,0.0001682,2]
[400733592,1767803442209,-500.0,0.00016821,2]
[400733593,1767803442218,-543.0,0.00016875,2]
[400733594,1767803442227,-500.0,0.00016876,2]
[400733595,1767803442236,-1016.77,0.00016876,2]
[400733596,1767803442246,-543.0,0.00016929,2]
[400733597,1767803442255,-500.0,0.00016931,2]
[400733598,1767803442265,-500.0,0.00016959,2]
[400733599,1767803442274,-23136.75027823,0.00016962,2]
[400733600,1767803442284,-543.0,0.00016984,2]
[400733601,1767803442294,-500.0,0.00016986,2]
[400733602,1767803442304,-500.001539,0.00017,2]
[400733603,1767803442313,-179.52010608,0.00017,2]
[400733604,1767803442323,-543.0,0.00017039,2]
[400733605,1767803442333,-500.0,0.0001704,2]
[400733606,1767803442343,-543.0,0.00017094,2]
[400733607,1767803442352,-500.0,0.00017095,2]
[400733608,1767803442361,-543.0,0.00017148,2]
[400733609,1767803442370,-617.40005154,0.0001715,2]
[400733610,1767803442380,-500.0,0.0001715,2]
[400733611,1767803442389,-1016.77,0.0001715,2]
[400733612,1767803442398,-1000.0,0.00017191,2]
[400733613,1767803442409,-299.888,0.00017191,2]
[400733614,1767803442418,-500.0,0.00017191,2]
[400733615,1767803442428,-847.22084679,0.00017191,2]
[400733616,1767803442437,-503.18143071,0.00017191,2]
[400733618,1767803442447,-546.69556347,0.00017203,2]
[400733619,1767803442456,-500.0,0.00017205,2]
[400733620,1767803442465,-951.44310391,0.00017229,2]
[400733621,1767803442474,-349.13806168,0.0001726,2]
[400733622,1767803442483,-2500.0,0.00017264,2]
[400733623,1767803442493,-2500.0,0.00017264,2]
[400733624,1767803442502,-2500.0,0.00017264,2]
[400733625,1767803442511,-1037.00577444,0.00017264,2]
[400733626,1767803442520,-408.10299042,0.00017264,2]
[400733627,1767803442530,-2011.91087313,0.00017264,2]
[400733628,1767803442539,-23136.75027823,0.00017274,2]
[400733629,1767803442548,-1100.0,0.00017327,2]
[400733630,1767803442557,-334.5472959,0.00017423,2]
[400733631,1767803442566,-287.61899177,0.00017423,2]
[400733632,1767803442575,-642.94,0.00017423,2]
[400733633,1767803442584,-1016.77,0.00017424,2]
[400733634,1767803442593,-349.0,0.00017461,2]
[400733635,1767803442603,-245.0,0.00017479,2]
[400733636,1767803442612,-866.0,0.00017494,2]
[400733637,1767803442621,-2000.0,0.000175,2]
[400733638,1767803442631,-1600.70015005,0.000175,2]
[400733639,1767803442640,-1040.82358149,0.00017534,2]
[400733640,1767803442649,-30759.29733124,0.00017569,2]
[400733641,1767803442659,-378.07,0.00017578,2]
[400733642,1767803442668,-23136.75027823,0.00017587,2]
[400733643,1767803442677,-9228.55577035,0.0001764,2]
[400733644,1767803442687,-640.24385345,0.00017698,2]
[400733645,1767803442696,-1016.77,0.00017698,2]
[400733646,1767803442706,-1000.0,0.000177,2]
[400733647,1767803442715,-450.04111853,0.00017739,2]
[400733648,1767803442725,-240.62620329,0.00017755,2]
[400733649,1767803442735,-661.1,0.00017761,2]
[400733650,1767803442744,-505.38555235,0.00017812,2]
[400733651,1767803442753,-3000.0,0.00017812,2]
[400733652,1767803442762,-3000.0,0.00017812,2]
[400733653,1767803442771,-1939.46205,0.0001782,2]
[400733654,1767803442781,-1939.46206,0.0001782,2]
[400733655,1767803442790,-1939.46206,0.0001783,2]
[400733656,1767803442802,-200.0,0.00017855,2]
[400733657,1767803442813,-200.0,0.00017856,2]
[400733658,1767803442823,-1939.46206,0.0001786,2]
[400733659,1767803442832,-1939.46205,0.0001788,2]
[400733660,1767803442842,-1000.0,0.000179,2]
[400733661,1767803442851,-23136.75027823,0.000179,2]
[400733662,1767803442860,-1321.13623348,0.000179,2]
[400733663,1767803442870,-951.44310391,0.000179,2]
[400733664,1767803442881,-5658.07166192,0.000179,2]
[400733665,1767803442890,-220.75068873,0.000179,2]
[400733666,1767803442900,-500.0,0.000179,2]
[400733667,1767803442910,-500.0,0.000179,2]
[400733668,1767803442919,-500.0,0.000179,2]
[400733669,1767803442928,-500.0,0.000179,2]
[400733670,1767803442938,-500.0,0.000179,2]
[400733671,1767803442947,-500.0,0.000179,2]
[400733672,1767803442957,-500.0,0.000179,2]
[400733673,1767803442967,-500.0,0.000179,2]
[400733674,1767803442977,-500.0,0.000179,2]
[400733675,1767803442986,-500.0,0.000179,2]
[400733676,1767803442996,-500.0,0.000179,2]
[400733677,1767803443005,-313.34622116,0.000179,2]
[400733678,1767803443015,-8646.0,0.000179,2]
[400733679,1767803443024,-1939.46206,0.0001791,2]
[400733680,1767803443035,-1000.0,0.0001797,2]
[400733681,1767803443044,-1000.0,0.0001797,2]
[400733682,1767803443053,-1109.90852601,0.0001797,2]
[400733683,1767803443064,-1016.81654479,0.00017972,2]
[400733684,1767803443073,-150.0,0.00017973,2]
[400733685,1767803443083,-150.0,0.00017973,2]
[400733686,1767803443092,-1455.64956121,0.0001799,2]
[400733687,1767803443103,-1455.64956121,0.0001799,2]
[400733688,1767803443112,-349.0,0.00017993,2]
[400733689,1767803443122,-151.0,0.00017997,2]
[400733690,1767803443131,-7029.0764684,0.00017998,2]
[400733691,1767803443141,-300.0,0.00017999,2]
[400733692,1767803443151,-300.0,0.00017999,2]
[400733693,1767803443160,-184.89145749,0.00017999,2]
[400733694,1767803443170,-300.0,0.00017999,2]
[400733695,1767803443179,-354.87804461,0.00017999,2]
[400733696,1767803443189,-666.0,0.00017999,2]
[400733697,1767803443199,-500.0,0.00017999,2]
[400733698,1767803443208,-509.86932533,0.00017999,2]
[400733699,1767803443217,-500.0,0.00017999,2]
[400733700,1767803443227,-529.68631152,0.00017999,2]
[400733701,1767803443236,-300.0,0.00017999,2]
[400733702,1767803443246,-300.0,0.00017999,2]
[400733703,1767803443255,-1109.26559335,0.00017999,5]
[400733704,1767803443265,-1109.26559335,0.00017999,5]
[400733705,1767803443274,-1109.26559333,0.00017999,5]
[400733706,1767803443284,-300.0,0.00017999,2]
[400733707,1767803443293,-666.0,0.00017999,2]
[400733708,1767803443303,-500.0,0.00017999,2]
[400733709,1767803443312,-500.0,0.00017999,2]
[400733710,1767803443322,-342.62118924,0.00017999,2]
[400733711,1767803443331,-5826.21400436,0.00017999,2]
[400733712,1767803443341,-428484.40878349,0.00018,2]
[400733713,1767803443351,-1000.0,0.00018,2]
[400733714,1767803443360,-1000.0,0.00018,2]
[400733715,1767803443369,-1000.0,0.00018,2]
[400733716,1767803443378,-1000.0,0.00018,2]
[400733717,1767803443387,-1000.0,0.00018,2]
[400733718,1767803443397,-1000.0,0.00018,2]
[400733719,1767803443406,-1000.0,0.00018,2]
[400733720,1767803443416,-1000.0,0.00018,2]
[400733721,1767803443426,-1000.0,0.00018,2]
[400733722,1767803443436,-1000.0,0.00018,2]
[400733723,1767803443446,-1000.0,0.00018,2]
[400733725,1767803443456,-1000.0,0.00018,2]
[400733727,1767803443466,-1000.0,0.00018,2]
[400733728,1767803443476,-1000.0,0.00018,2]
[400733729,1767803443486,-1000.0,0.00018,2]
[400733730,1767803443495,-1000.0,0.00018,2]
[400733731,1767803443505,-1000.0,0.00018,2]
[400733732,1767803443514,-1000.0,0.00018,2]
[400733733,1767803443523,-1000.0,0.00018,2]
[400733734,1767803443534,-1000.0,0.00018,2]
[400733735,1767803443544,-1000.0,0.00018,2]
[400733736,1767803443554,-1000.0,0.00018,2]
[400733737,1767803443563,-1000.0,0.00018,2]
[400733738,1767803443573,-1000.0,0.00018,2]
[400733739,1767803443583,-1000.0,0.00018,2]
[400733740,1767803443592,-1000.0,0.00018,2]
[400733741,1767803443601,-838.60419167,0.00018,2]
[400733742,1767803443611,-150.0,0.00018,2]
[400733743,1767803443620,-931.39881132,0.00018,2]
[400733744,1767803443630,-150.0,0.00018,2]
[400733745,1767803443640,-1217.05736665,0.00018,2]
[400733746,1767803443649,-200.0,0.00018,2]
[400733747,1767803443659,-158.0,0.00018,2]
[400733748,1767803443668,-840.0,0.00018,2]
[400733749,1767803443678,-158.0,0.00018,2]
[400733750,1767803443688,-152.0,0.00018,2]
[400733751,1767803443697,-158.0,0.00018,2]
[400733752,1767803443706,-152.0,0.00018,2]
[400733753,1767803443715,-156.3554653,0.00018,2]
[400733754,1767803443725,-502822.34199047,0.00018,2]
[400733755,1767803444529,-5837903.47706695,0.00018,2]
[400733756,1767803444589,-10599.09831112,0.00018,2]
[400733757,1767803444639,-582.56944268,0.00018,2]
[400733764,1767803445852,-4080687.94269945,0.00018,2]
[400733765,1767803445863,-9160.46806786,0.00018,2]
[400733766,1767803446410,-1.7e-07,0.00018,2]
[400734140,1767803450241,-447.27153168,0.000179,2]
[400734142,1767803450253,-12178.48651957,0.000179,2]
[400734144,1767803450263,-417.19965587,0.00018,2]
[400734147,1767803450274,-3152.19488824,0.00018,2]
[400734217,1767803450929,-735.24608787,0.00018,2]
[400734224,1767803450983,-850.66893058,0.00018,2]
[400734226,1767803450994,-619.94646908,0.00018,2]
[400734231,1767803451034,-345.69,0.00018,2]
[400734240,1767803451104,-5559.86373034,0.00018,2]
[400734242,1767803451116,-387.71678549,0.00018,2]
[400734244,1767803451127,-1012.68459326,0.00018,2]
[400734321,1767803451856,-11825.00006151,0.00018,2]
[400734323,1767803451867,-23916.42488506,0.00018,2]
[400734325,1767803451879,-1496.48755394,0.00018,2]
[400734328,1767803451891,-291.637896,0.00018,2]
[400734339,1767803451992,-61236.09761277,0.00018,2]
[400734341,1767803452003,-466.81370507,0.00018,2]
[400734343,1767803452015,-9428.85092983,0.00018,2]
[400734345,1767803452025,-751.48218941,0.00018,2]
[400734348,1767803452039,-649.18106631,0.00018,2]
[400734358,1767803452130,-3607.02658723,0.00018,2]
[400734360,1767803452142,-82732.69066058,0.00018,2]
[400734367,1767803452193,-8022.30645606,0.00018,2]
[400734415,1767803455365,1006.88287464,0.00032876,120]
[400734416,1767803467615,500.0,0.00015073,2]
[400734417,1767803487585,9500.01,0.00015073,2]
[400734418,1767803487687,10000.01,0.00015073,2]
[400734419,1767803487783,10000.01,0.00015073,2]
[400734420,1767803487874,10000.01,0.00015073,2]
[400734421,1767803487966,10000.01,0.00015073,2]
[400734422,1767803489620,-250.0,0.00015073,2]
[400734423,1767803515070,-298.25789476,0.00015073,2]
[400734424,1767803516365,10000.01,0.00014973,2]
[400734425,1767803516439,7848.47221585,0.00014973,2]
[400734426,1767803517785,-250.0,0.00015073,2]
[400734428,1767803526337,500.0,0.00015073,2]
[400734429,1767803533613,311.64161933,0.00015073,2]
[400734430,1767803533783,500.0,0.00015073,2]
[400734431,1767803535437,500.0,0.00015073,2]
[400734432,1767803535926,339.89616482,0.00015073,2]
[400734433,1767803536003,160.10383518,0.00015073,2]
[400734434,1767803540842,500.0,0.00015073,2]
[400734435,1767803543279,526.89,0.00027899,120]
[400734436,1767803543526,526.89,0.00029999,120]
[400734437,1767803543678,526.89,0.00030799,120]
[400734438,1767803543813,526.89,0.00031899,120]
[400734439,1767803543968,526.89,0.00032799,120]
[400734440,1767803575760,9339.90616482,0.00014973,2]
[400734441,1767803575841,8701.18925407,0.00014973,2]
[400734442,1767803581955,300.0,0.00015072,2]
[400734443,1767803582495,300.0,0.00015072,2]
[400734444,1767803588198,500.0,0.00015073,2]
[400734445,1767803589502,198.82074593,0.00015073,2]
[400734446,1767803589580,301.17925407,0.00015073,2]
[400734447,1767803591418,500.0,0.00015072,2]
[400734448,1767803591543,500.0,0.00015072,2]
[400734449,1767803591677,500.0,0.00015072,2]
[400734450,1767803591811,500.0,0.00015072,2]
[400734451,1767803592563,500.0,0.00015072,2]
[400734452,1767803592680,500.0,0.00015072,2]
[400734453,1767803592767,500.0,0.00015072,2]
[400734454,1767803592880,500.0,0.00015072,2]
[400734455,1767803593032,500.0,0.00015072,2]
[400734456,1767803593124,500.0,0.00015072,2]
[400734457,1767803593247,500.0,0.00015072,2]
[400734458,1767803593372,500.0,0.00015072,2]
[400734459,1767803593532,500.0,0.00015072,2]
[400734460,1767803593617,500.0,0.00015072,2]
[400734461,1767803594378,500.0,0.00015072,2]
[400734462,1767803594496,193.84593493,0.00015072,2]
[400734463,1767803594667,500.0,0.00015072,2]
[400734464,1767803594795,500.0,0.00015072,2]
[400734465,1767803596043,500.0,0.00015072,2]
[400734467,1767803606376,410.54499948,0.00015072,2]
[400734468,1767803606468,94.43981152,0.00015072,2]
[400734469,1767803606544,405.56018848,0.00015072,2]
[400734470,1767803606641,500.0,0.00015072,2]
[400734471,1767803606803,500.0,0.00015072,2]
[400734472,1767803606931,504.90099374,0.00015072,2]
[400734473,1767803607070,500.0,0.00015072,2]
[400734474,1767803607210,500.0,0.00015072,2]
[400734475,1767803608466,193.84593493,0.00015072,2]
[400734476,1767803620877,6895.70288285,0.00014973,2]
[400734477,1767803620959,6926.87831715,0.00014973,2]
[400734478,1767803623083,30759.29733124,0.000328,120]
[400734479,1767803641271,300.0,0.00015072,2]
[400734480,1767803643332,500.0,0.00015073,2]
[400734481,1767803643655,500.0,0.00015073,2]
[400734482,1767803643807,500.0,0.00015073,2]
[400734483,1767803644456,500.0,0.00015073,2]
[400734484,1767803649971,500.0,0.00015073,2]
[400734485,1767803650077,331.79442927,0.00015073,2]
[400734486,1767803651655,500.0,0.00015073,2]
[400734487,1767803653365,500.0,0.00015073,2]
[400734488,1767803654326,500.0,0.00015073,2]
[400734489,1767803654446,500.0,0.00015073,2]
[400734490,1767803655558,500.0,0.000328,120]
[400734491,1767803658789,509.96734995,0.00015073,2]
[400734492,1767803664921,-949701.69210524,0.00015073,2]
[400734493,1767803664946,-1000.0,0.00015073,2]
[400734494,1767803664972,-195.0,0.00015086,2]
[400734495,1767803665000,-300.0,0.00015098,2]
[400734496,1767803707580,500.0,0.00015073,2]
[400734497,1767803707688,500.0,0.00015073,2]
[400734498,1767803708029,500.0,0.00015073,2]
[400734499,1767803711247,328.39570891,0.00015073,2]
[400734500,1767803714812,472.18937407,0.00015073,2]
[400734501,1767803718054,164.0,0.00032876,120]
[400734502,1767803718244,154.0,0.00032876,120]
[400734503,1767803718703,164.0,0.00032876,120]
[400734504,1767803719290,154.0,0.00032876,120]
[400734505,1767803719327,840.0,0.00032876,120]
[400734506,1767803719517,6703.9439,0.00014973,2]
[400734507,1767803720470,158.0,0.00032876,120]
[400734508,1767803720685,158.0,0.00032876,120]
[400734509,1767803721940,158.0,0.00032876,120]
[400734510,1767803722134,152.0,0.00032876,120]
[400734511,1767803722199,156.3554653,0.00032876,120]
[400734512,1767803722492,152.0,0.00032876,120]
[400734513,1767803723052,152.0,0.00032876,120]
[400734514,1767803723217,152.0,0.00032876,120]
[400734515,1767803723618,164.0,0.00032876,120]
[400734516,1767803723717,154.0,0.00032876,120]
[400734517,1767803723959,164.0,0.00032876,120]
[400734518,1767803724050,154.0,0.00032876,120]
[400734519,1767803724404,158.65429393,0.00032876,120]
[400734520,1767803724857,154.0,0.00032876,120]
[400734521,1767803725284,236.5096,0.00014973,2]
[400734522,1767803728908,154.0,0.00032876,120]
[400734523,1767803729735,154.0,0.00032876,120]
[400734524,1767803730388,154.0,0.00032876,120]
[400734525,1767803732675,154.0,0.00032876,120]